bitfinex/quotes_SOLUSD_20241209
["timestamp","ask_amount","ask_price","bid_price","bid_amount"]
[1733748823826,20.0,227.13,227.02,0.12549]
[1733748824021,20.0,227.13,226.98,0.12549]
[1733748824223,20.0,227.13,226.99,0.12549]
[1733748824727,23.776884,227.08,226.99,0.12549]
[1733748824911,23.776884,227.08,227.01,0.12549]
[1733748827117,23.776884,227.08,227.01,0.25098]
[1733748827435,1.5995,227.2,227.03,13.14959125]
[1733748828033,1.5995,227.2,227.04,0.12549]
[1733748828337,1.5995,227.2,227.05,0.12549]
[1733748828844,20.0,227.18,227.05,0.12549]
[1733748829432,20.0,227.18,227.04,0.37647]
[1733748829620,20.0,227.14,227.04,0.12549]
[1733748829820,23.776884,227.13,227.04,0.12549]
[1733748830038,20.0,227.1,227.04,0.12549]
[1733748830239,23.776884,227.09,227.04,0.12549]
[1733748831558,0.5078421,227.19,227.09,0.25098]
[1733748832071,0.5078421,227.19,227.11,0.12549]
[1733748832416,0.5078421,227.19,227.11,0.25098]
[1733748832628,0.5078421,227.19,227.13,0.12549]
[1733748833357,0.5078421,227.19,227.11,0.37647]
[1733748833842,0.5078421,227.19,227.11,1.03677068]
[1733748834345,0.5078421,227.19,227.13,0.25098]
[1733748834537,0.5078421,227.19,227.13,0.91118983]
[1733748834843,0.5078421,227.19,227.14,0.12549]
[1733748835350,0.5078421,227.19,227.15,0.91114974]
[1733748835531,0.5078421,227.19,227.16,0.12549]
[1733748835927,0.5078421,227.19,227.18,0.12549]
[1733748837232,0.5078421,227.19,227.17,0.25098]
[1733748838752,0.5078421,227.19,227.18,0.12549]
[1733748839836,0.5078421,227.19,227.18,13.27508125]
[1733748842226,0.5078421,227.19,227.18,21.44738125]
[1733748842838,1.5482,227.36,227.18,21.44738125]
[1733748843033,0.5078421,227.41,227.28,0.12549]
[1733748843357,0.5078421,227.41,227.29,0.25098]
[1733748843527,0.5078421,227.41,227.31,0.12549]
[1733748844246,0.5078421,227.41,227.29,0.25098]
[1733748844446,0.5078421,227.41,227.22,12.89861125]
[1733748844447,20.5078421,227.41,227.22,12.89861125]
[1733748844757,20.5078421,227.41,227.23,0.12549]
[1733748844934,23.776884,227.4,227.23,0.37647]
[1733748845135,20.0,227.37,227.22,0.65988744]
[1733748845344,23.776884,227.32,227.2,0.65994098]
[1733748845526,23.776884,227.28,227.2,0.65994098]
[1733748845730,23.776884,227.28,227.2,13.55855223]
[1733748845965,23.776884,227.28,227.21,13.14959125]
[1733748846131,23.776884,227.28,227.23,13.14959125]
[1733748846329,23.776884,227.28,227.25,0.12549]
[1733748847132,23.776884,227.28,227.24,0.12549]
[1733748847332,23.776884,227.28,227.19,13.5585211]
[1733748847627,23.776884,227.28,227.2,0.12549]
[1733748848426,23.776884,227.28,227.19,0.65990985]
[1733748848632,23.776884,227.28,227.18,8.83230732]
[1733748848851,23.776884,227.24,227.19,0.12549]
[1733748849158,23.776884,227.24,227.18,8.83230732]
[1733748849576,23.776884,227.2,227.13,8.1223]
[1733748849863,23.776884,227.2,227.13,8.78250739]
[1733748851353,23.29340447,227.32,227.14,0.12549]
[1733748851557,20.0,227.2,227.16,0.12549]
[1733748852231,23.776884,227.23,227.16,0.12549]
[1733748852436,20.0,227.24,227.16,0.12549]
[1733748852743,20.0,227.24,227.18,0.12549]
[1733748853132,23.29340447,227.32,227.17,0.78560072]
[1733748853361,23.29340447,227.32,227.17,0.12549]
[1733748853927,23.29340447,227.32,227.17,1.03657917]
[1733748853928,23.776884,227.31,227.17,1.03657917]
[1733748854273,20.0,227.28,227.17,1.03657917]
[1733748854437,20.0,227.24,227.17,1.03657917]
[1733748855264,20.0,227.28,227.17,0.37647]
[1733748855633,20.0,227.28,227.17,1.03659131]
[1733748856033,20.0,227.28,227.19,0.12549]
[1733748856253,23.29340447,227.32,227.19,0.91100068]
[1733748856838,21.5449,227.32,227.19,6.99470068]
[1733748857037,8.0559,227.4,227.21,0.25098]
[1733748857234,8.0559,227.4,227.25,0.25098]
[1733748857431,8.0559,227.4,227.25,0.91079734]
[1733748857854,9.80447913,227.4,227.27,0.12549]
[1733748858573,20.0,227.37,227.27,0.25098]
[1733748858862,1.5904,227.4,227.28,0.25098]
[1733748859044,1.5904,227.4,227.29,0.12549]
[1733748859234,1.5904,227.4,227.31,0.12549]
[1733748859435,0.5078421,227.41,227.3,0.37647]
[1733748859634,0.5078421,227.41,227.32,0.12549]
[1733748860241,0.5078421,227.41,227.31,0.65969032]
[1733748860242,0.5078421,227.41,227.31,0.12549]
[1733748860440,0.5078421,227.41,227.3,6.42238]
[1733748860441,0.5078421,227.41,227.3,6.1714]
[1733748860665,0.5078421,227.41,227.29,0.12549]
[1733748861686,20.0,227.39,227.29,0.12549]
[1733748862764,20.0,227.39,227.31,0.12549]
[1733748865085,20.0,227.39,227.3,0.65974961]
[1733748865250,0.5078421,227.41,227.28,1.6591]
[1733748865251,20.0,227.35,227.28,1.6591]
[1733748866278,0.5078421,227.41,227.28,1.6591]
[1733748868695,20.0,227.37,227.25,6.1714]
[1733748868860,20.0,227.33,227.25,6.1714]
[1733748870585,20.0,227.33,227.26,0.78536838]
[1733748870791,0.5078421,227.41,227.27,0.12549]
[1733748871786,0.5078421,227.41,227.27,0.12549]
[1733748872095,0.5078421,227.41,227.26,0.78529229]
[1733748872763,0.5078421,227.41,227.26,0.25098]
[1733748873791,0.5078421,227.41,227.26,0.91084343]
[1733748875573,0.5078421,227.41,227.28,0.12549]
[1733748875777,0.5078421,227.41,227.28,0.91067065]
[1733748876007,0.5078421,227.41,227.28,0.65969065]
[1733748876601,0.5078421,227.41,227.29,0.12549]
[1733748876901,0.5078421,227.41,227.29,0.78527101]
[1733748877671,23.776884,227.39,227.29,0.78527101]
[1733748877877,20.0,227.36,227.29,0.78527101]
[1733748878087,20.0,227.36,227.29,0.65978101]
[1733748878303,20.0,227.36,227.25,6.1714]
[1733748878810,20.0,227.36,227.27,0.12549]
[1733748878990,20.0,227.36,227.28,0.6597675]
[1733748879902,0.5078421,227.41,227.29,0.25098]
[1733748880104,20.0,227.4,227.3,0.65972053]
[1733748882579,0.5078421,227.41,227.25,6.1714]
[1733748882580,20.0,227.32,227.25,6.1714]
[1733748882879,20.0,227.32,227.25,6.83128048]
[1733748883080,0.5078421,227.41,227.25,6.83128048]
[1733748883303,0.12549,227.4,227.25,6.83128048]
[1733748883511,20.0,227.37,227.25,6.83128048]
[1733748884017,20.0,227.33,227.25,6.83128048]
[1733748884593,20.12549,227.4,227.25,6.83128048]
[1733748884792,23.776884,227.39,227.25,6.83128048]
[1733748884992,20.0,227.36,227.25,6.83128048]
[1733748885190,23.776884,227.35,227.25,6.83128048]
[1733748885507,20.0,227.32,227.26,0.12549]
[1733748885690,20.0,227.32,227.27,0.65978932]
[1733748886286,0.5078421,227.41,227.27,0.65978932]
[1733748886685,23.776884,227.39,227.27,0.65978932]
[1733748886887,20.0,227.36,227.27,0.65978932]
[1733748887108,20.0,227.36,227.28,0.25098]
[1733748887312,20.0,227.36,227.29,0.6597353]
[1733748887688,0.5078421,227.41,227.29,0.6597353]
[1733748888409,0.5078421,227.41,227.31,1.6304]
[1733748888710,0.5078421,227.41,227.34,6.2246]
[1733748888913,0.5078421,227.41,227.34,6.8842256]
[1733748889902,0.5078421,227.41,227.34,6.2246]
[1733748891115,0.5078421,227.41,227.31,1.6304]
[1733748891907,0.5078421,227.41,227.29,6.4197]
[1733748898023,0.12549,227.4,227.29,6.4197]
[1733748898397,20.0,227.37,227.29,6.4197]
[1733748898600,23.776884,227.36,227.29,6.4197]
[1733748900395,20.0,227.33,227.29,6.4197]
[1733748903322,0.5078421,227.41,227.3,0.7853131]
[1733748906118,0.5078421,227.41,227.32,0.12549]
[1733748906315,0.5078421,227.41,227.33,0.12549]
[1733748906547,0.5078421,227.41,227.34,0.65959336]
[1733748907433,0.5078421,227.41,227.34,0.12549]
[1733748908011,0.5078421,227.41,227.35,0.65959652]
[1733748908210,0.5078421,227.41,227.36,6.82788]
[1733748908412,0.5078421,227.41,227.37,0.65950353]
[1733748913425,0.5078421,227.41,227.36,6.5769]
[1733748913626,0.5078421,227.41,227.35,1.5876]
[1733748914362,0.5078421,227.41,227.31,6.1172]
[1733748914727,20.0,227.37,227.25,6.4299]
[1733748914952,20.0,227.33,227.25,6.4299]
[1733748915637,23.776884,227.32,227.25,6.4299]
[1733748915854,20.0,227.29,227.25,6.4299]
[1733748916955,0.12549,227.36,227.18,8.45335314]
[1733748917343,20.0,227.3,227.19,0.25098]
[1733748917657,0.12549,227.36,227.18,7.7934]
[1733748917658,20.0,227.26,227.18,7.7934]
[1733748918157,0.12549,227.34,227.19,0.66010089]
[1733748918355,0.12549,227.34,227.2,0.12549]
[1733748918356,20.0,227.31,227.2,0.12549]
[1733748918656,20.0,227.31,227.21,0.65998809]
[1733748919030,0.12549,227.37,227.21,0.65998809]
[1733748919451,0.25098,227.39,227.21,0.65998809]
[1733748920229,23.776884,227.35,227.21,0.65998809]
[1733748920435,20.0,227.32,227.21,0.65998809]
[1733748920649,0.12549,227.4,227.23,0.25098]
[1733748920843,0.12549,227.4,227.24,0.78534994]
[1733748921363,0.25098,227.4,227.24,0.78534994]
[1733748921930,23.776884,227.36,227.24,0.78534994]
[1733748922136,20.0,227.37,227.24,0.78534994]
[1733748922137,20.0,227.33,227.24,0.78534994]
[1733748922737,20.0,227.37,227.24,0.78534994]
[1733748923055,20.0,227.33,227.25,0.12549]
[1733748923232,20.0,227.33,227.26,2.28892814]
[1733748923758,2.25003999,227.41,227.28,6.4614]
[1733748923953,2.25003999,227.41,227.29,0.78525852]
[1733748924937,0.5078421,227.41,227.29,0.78525852]
[1733748925359,20.0,227.4,227.29,0.78525852]
[1733748925653,20.0,227.36,227.29,0.78525852]
[1733748926251,23.776884,227.39,227.29,0.78525852]
[1733748926466,20.0,227.36,227.29,0.78525852]
[1733748927161,0.5078421,227.41,227.29,0.78525852]
[1733748927162,0.5078421,227.41,227.3,0.12549]
[1733748927340,0.5078421,227.41,227.31,0.65966286]
[1733748927953,0.5078421,227.41,227.32,0.12549]
[1733748928154,0.5078421,227.41,227.33,0.6595994]
[1733748929765,0.5078421,227.41,227.34,0.25098]
[1733748929961,0.5078421,227.41,227.36,0.12549]
[1733748931271,0.5078421,227.41,227.35,1.5631]
[1733748934541,0.5078421,227.41,227.36,6.3836]
[1733748946196,0.5078421,227.41,227.36,7.04320195]
[1733748946555,0.5078421,227.41,227.36,6.3836]
[1733748950470,0.5078421,227.41,227.31,6.002]
[1733748951669,0.5078421,227.41,227.32,0.65970946]
[1733748951886,0.5078421,227.41,227.31,6.002]
[1733748953793,0.5078421,227.41,227.32,0.78518858]
[1733748954775,0.5078421,227.41,227.31,6.002]
[1733748957602,0.5078421,227.41,227.32,0.7851696]
[1733748957972,0.5078421,227.41,227.34,0.12549]
[1733748958164,0.5078421,227.41,227.34,0.78504254]
[1733748960071,0.5078421,227.41,227.35,0.12549]
[1733748960387,0.5078421,227.41,227.36,0.65954447]
[1733748962193,0.5078421,227.41,227.37,0.12549]
[1733748963280,0.5078421,227.41,227.38,0.65951573]
[1733748963612,0.5078421,227.41,227.35,8.18347094]
[1733748963904,0.5078421,227.41,227.37,0.12549]
[1733748965074,0.5078421,227.41,227.38,0.65952453]
[1733748965678,0.5078421,227.41,227.39,1.606]
[1733748966076,0.5078421,227.41,227.4,6.66789]
[1733748966274,0.82239381,227.56,227.4,7.32732571]
[1733748966476,23.902374,227.55,227.4,7.32732571]
[1733748966705,20.0,227.52,227.4,7.32732571]
[1733748972884,20.0,227.48,227.4,6.5424]
[1733748973110,23.776884,227.47,227.4,6.5424]
[1733748973292,23.776884,227.47,227.39,1.606]
[1733748973293,23.776884,227.47,227.34,1.5865]
[1733748974284,23.776884,227.47,227.35,0.78511111]
[1733748974982,10.0,227.46,227.35,0.78511111]
[1733748976385,10.0,227.46,227.36,0.12549]
[1733748977612,10.0,227.46,227.37,0.65950954]
[1733748978722,20.0,227.43,227.35,0.12549]
[1733748980419,20.0,227.43,227.36,0.65956156]
[1733748980986,20.0,227.43,227.35,0.12549]
[1733748981810,20.0,227.43,227.36,0.65958405]
[1733748982313,20.0,227.43,227.35,0.12549]
[1733748983919,20.0,227.43,227.34,1.5865]
[1733748987109,23.776884,227.42,227.34,1.5865]
[1733748991219,23.776884,227.42,227.33,6.0373]
[1733748991411,23.776884,227.38,227.33,6.0373]
[1733748995129,20.0,227.39,227.33,6.0373]
[1733748995328,20.0,227.43,227.33,6.0373]
[1733748995533,20.0,227.39,227.33,6.0373]
[1733748996311,20.0,227.42,227.33,6.0373]
[1733748996618,23.776884,227.41,227.33,6.0373]
[1733748998009,10.0,227.46,227.34,0.37647]
[1733748998243,23.776884,227.45,227.35,0.6595761]
[1733748999705,23.776884,227.45,227.36,1.5693]
[1733748999907,23.776884,227.45,227.37,0.91053747]
[1733749000223,20.0,227.43,227.37,0.91053747]
[1733749003219,20.0,227.43,227.37,0.25098]
[1733749003417,23.776884,227.45,227.37,0.25098]
[1733749004154,23.776884,227.41,227.36,1.5693]
[1733749004713,23.776884,227.41,227.33,6.0373]
[1733749009534,20.0,227.38,227.33,6.0373]
[1733749009729,23.776884,227.37,227.33,6.0373]
[1733749011041,23.776884,227.37,227.29,0.65975861]
[1733749011742,23.776884,227.42,227.3,0.25098]
[1733749011950,20.0,227.39,227.32,0.25098]
[1733749012654,23.776884,227.42,227.32,0.25098]
[1733749013368,20.0,227.43,227.34,0.25098]
[1733749013950,20.0,227.43,227.33,1.5467]
[1733749014360,20.0,227.43,227.34,0.25098]
[1733749014952,23.776884,227.42,227.34,0.25098]
[1733749015167,23.776884,227.42,227.33,1.5467]
[1733749016849,23.776884,227.42,227.34,0.65967498]
[1733749017555,23.776884,227.42,227.34,0.25098]
[1733749018149,20.0,227.43,227.34,0.91060137]
[1733749018554,20.0,227.43,227.35,0.12549]
[1733749018752,10.0,227.46,227.38,0.12549]
[1733749018940,10.0,227.46,227.39,0.25098]
[1733749019758,10.0,227.46,227.41,0.25098]
[1733749019965,10.0,227.46,227.42,1.6049]
[1733749022542,10.0,227.46,227.43,0.91038771]
[1733749022774,10.0,227.46,227.43,0.25098]
[1733749022947,10.0,227.46,227.42,1.6049]
[1733749025250,10.0,227.46,227.43,1.03585141]
[1733749028260,10.0,227.46,227.43,0.37647]
[1733749031461,10.0,227.46,227.45,0.37647]
[1733749034197,10.0,227.46,227.41,0.12549]
[1733749034391,10.0,227.46,227.4,0.6593261]
[1733749034959,10.0,227.46,227.41,0.25098]
[1733749035688,10.0,227.46,227.42,0.12549]
[1733749035886,10.0,227.46,227.42,0.78489462]
[1733749036056,10.0,227.46,227.42,0.12549]
[1733749036480,10.0,227.46,227.42,0.78489094]
[1733749036790,20.0,227.5,227.42,0.78487699]
[1733749036967,20.0,227.5,227.43,0.25098]
[1733749037667,20.0,227.5,227.44,0.12549]
[1733749039992,9.71930594,227.61,227.45,0.25098]
[1733749040170,3.35640594,227.61,227.49,0.25098]
[1733749040496,1.6208,227.61,227.5,0.12549]
[1733749041066,1.6208,227.61,227.49,0.65916683]
[1733749041275,1.6208,227.61,227.48,1.5416]
[1733749041505,1.6208,227.61,227.42,1.6503]
[1733749041506,0.25098,227.6,227.42,1.6503]
[1733749041666,20.0,227.56,227.42,1.6503]
[1733749041862,23.776884,227.55,227.42,1.6503]
[1733749042067,23.776884,227.51,227.42,0.65938214]
[1733749042394,23.776884,227.48,227.36,8.18347094]
[1733749042597,23.776884,227.48,227.38,0.25098]
[1733749042778,23.776884,227.48,227.4,0.25098]
[1733749042973,23.776884,227.48,227.39,0.65945563]
[1733749043777,23.776884,227.52,227.4,0.25098]
[1733749044090,20.0,227.49,227.41,0.65942053]
[1733749044484,23.776884,227.48,227.34,0.65943072]
[1733749044668,1.5462,227.53,227.4,8.18347094]
[1733749044863,1.602,227.58,227.42,6.3707]
[1733749045061,0.12549,227.57,227.42,6.3707]
[1733749046281,20.0,227.52,227.44,0.12549]
[1733749047291,23.776884,227.53,227.44,0.12549]
[1733749047493,20.0,227.5,227.44,0.12549]
[1733749047897,1.72729236,227.58,227.47,0.12549]
[1733749048099,0.5078421,227.64,227.49,0.12549]
[1733749048412,0.5078421,227.64,227.52,0.25098]
[1733749048577,0.5078421,227.64,227.53,0.12549]
[1733749049509,0.5078421,227.64,227.55,0.25098]
[1733749049805,0.5078421,227.64,227.58,0.12549]
[1733749050099,0.5078421,227.64,227.6,0.12549]
[1733749050309,0.5078421,227.64,227.62,0.12549]
[1733749051169,0.5078421,227.64,227.58,0.6588529]
[1733749051374,0.5078421,227.64,227.58,0.12549]
[1733749052101,0.5078421,227.64,227.58,0.37647]
[1733749052478,0.5078421,227.64,227.52,0.65896728]
[1733749052668,0.5078421,227.64,227.53,0.12549]
[1733749052999,0.5078421,227.64,227.55,0.37647]
[1733749056177,0.5078421,227.64,227.63,12.88698739]
[1733749056985,0.5078421,227.64,227.63,0.12549]
[1733749057306,0.5078421,227.64,227.62,0.37647]
[1733749057482,0.5078421,227.64,227.6,0.12549]
[1733749058312,0.5078421,227.64,227.59,0.6588786]
[1733749058610,0.5078421,227.64,227.57,13.54596172]
[1733749058782,0.5078421,227.64,227.59,0.12549]
[1733749058970,0.5078421,227.64,227.6,0.25098]
[1733749059490,0.5078421,227.64,227.58,0.25098]
[1733749059686,0.5078421,227.64,227.59,0.12549]
[1733749060984,0.5078421,227.64,227.61,12.76149739]
[1733749061209,1.5103,227.88,227.71,0.12549]
[1733749061509,1.5103,227.88,227.73,0.12549]
[1733749062591,23.776884,227.87,227.73,0.12549]
[1733749063809,23.776884,227.83,227.73,0.12549]
[1733749064113,23.776884,227.79,227.7,0.12549]
[1733749064284,23.776884,227.79,227.7,0.78408548]
[1733749066508,96.3,227.94,227.7,0.78408548]
[1733749066509,7.8783,228.02,227.79,0.25098]
[1733749066751,7.8783,228.02,227.8,0.12549]
[1733749067584,1.79075908,227.94,227.8,0.12549]
[1733749068218,20.0,227.99,227.8,0.12549]
[1733749068584,20.0,227.99,227.79,0.25098]
[1733749068907,20.0,227.99,227.77,0.37647]
[1733749069218,20.0,227.99,227.77,1.03483343]
[1733749069506,1.73147525,227.95,227.77,1.03483343]
[1733749070617,1.6664,228.03,227.84,12.76149739]
[1733749070916,1.6664,228.03,227.85,0.78358574]
[1733749071589,1.6664,228.03,227.86,0.25098]
[1733749071803,1.6664,228.03,227.85,0.12549]
[1733749071982,1.6664,228.03,227.89,12.76149739]
[1733749072312,1.6664,228.03,227.89,13.41952402]
[1733749072482,1.6664,228.03,227.89,12.76149739]
[1733749073294,1.6664,228.03,227.85,0.12549]
[1733749073295,23.776884,227.97,227.87,12.76149739]
[1733749073510,20.0,227.94,227.87,12.76149739]
[1733749073704,20.0,227.94,227.88,7.5552]
[1733749073919,1.6156,228.15,227.93,0.37647]
[1733749074091,1.72760833,228.12,227.98,12.76149739]
[1733749074291,1.6156,228.15,227.98,12.76149739]
[1733749075219,1.6156,228.15,228.0,12.76149739]
[1733749075391,1.6156,228.15,227.98,18.81949739]
[1733749076027,3.40774814,228.15,227.98,18.81949739]
[1733749076185,3.40774814,228.15,227.99,0.12549]
[1733749076392,3.40774814,228.15,227.9,6.5563]
[1733749076704,20.0,228.14,227.9,6.5563]
[1733749077720,23.776884,228.03,227.9,6.5563]
[1733749077924,20.0,228.0,227.9,6.5563]
[1733749078432,23.776884,227.99,227.89,13.41949657]
[1733749078722,23.776884,227.99,227.88,14.28949739]
[1733749079090,23.776884,227.99,227.89,0.65808044]
[1733749079292,20.0,227.97,227.88,1.528]
[1733749081002,20.0,227.97,227.88,22.54113627]
[1733749081892,20.0,227.97,227.88,1.528]
[1733749084724,20.0,227.97,227.89,20.3550914]
[1733749085101,20.0,227.97,227.88,2.18607614]
[1733749085398,20.0,227.97,227.88,1.528]
[1733749091894,20.0,227.97,227.86,0.65807723]
[1733749092095,20.0,227.93,227.85,6.478]
[1733749093013,23.776884,227.92,227.82,1.6016]
[1733749093221,20.0,227.89,227.79,6.2551]
[1733749094017,20.0,227.85,227.79,6.2551]
[1733749094519,20.0,227.85,227.77,1.6016]
[1733749095022,23.776884,227.84,227.74,26.6101914]
[1733749095223,23.776884,227.84,227.74,6.2551]
[1733749096312,20.0,227.81,227.74,6.2551]
[1733749096935,15.0,227.81,227.74,6.2551]
[1733749097349,23.776884,227.84,227.74,6.2551]
[1733749097555,23.776884,227.86,227.74,6.2551]
[1733749098918,20.0,227.83,227.74,6.2551]
[1733749099625,23.776884,227.82,227.71,1.6263]
[1733749100938,20.0,227.79,227.68,6.399]
[1733749101344,23.776884,227.78,227.68,6.399]
[1733749101548,23.776884,227.74,227.6,0.65864522]
[1733749101717,20.0,227.75,227.62,12.74686924]
[1733749101924,20.0,227.75,227.63,0.6587315]
[1733749102320,23.776884,227.8,227.63,0.6587315]
[1733749102843,20.0,227.77,227.63,0.6587315]
[1733749103053,20.0,227.77,227.63,0.12549]
[1733749103840,20.0,227.73,227.61,12.74686924]
[1733749104043,20.0,227.73,227.6,0.12549]
[1733749104236,20.0,227.73,227.59,13.40574119]
[1733749104755,23.776884,227.72,227.57,12.74686924]
[1733749105055,23.776884,227.72,227.58,13.4057514]
[1733749106261,23.776884,227.72,227.59,12.74686924]
[1733749106431,23.776884,227.72,227.58,13.40576609]
[1733749107244,23.776884,227.72,227.58,0.65889685]
[1733749107447,23.776884,227.72,227.57,12.74686924]
[1733749107638,23.776884,227.72,227.55,0.65894498]
[1733749107639,20.25098,227.69,227.56,12.74686924]
[1733749107838,23.776884,227.68,227.55,0.65894264]
[1733749108554,20.0,227.69,227.56,12.74686924]
[1733749108769,20.0,227.69,227.55,0.65894264]
[1733749108770,20.0,227.69,227.57,13.40580851]
[1733749109663,20.0,227.69,227.57,0.65893927]
[1733749110649,20.0,227.69,227.56,0.65893073]
[1733749110864,20.0,227.65,227.54,7.7184]
[1733749111032,20.0,227.65,227.55,0.65903297]
[1733749111233,1.5846,227.7,227.57,12.74686924]
[1733749111786,20.0,227.69,227.58,0.65893922]
[1733749112431,20.0,227.69,227.58,13.40580846]
[1733749113150,1.526,227.75,227.63,12.74686924]
[1733749113336,1.526,227.75,227.62,0.12549]
[1733749113534,1.526,227.75,227.62,13.53113717]
[1733749114359,20.0,227.74,227.62,13.53113717]
[1733749114655,20.0,227.74,227.63,12.87235924]
[1733749114827,103.3431,227.91,227.65,12.74686924]
[1733749115025,1.526,227.89,227.66,12.74686924]
[1733749115226,1.526,227.89,227.66,13.40553193]
[1733749115851,0.25098,227.88,227.66,13.40553193]
[1733749116270,20.25098,227.88,227.66,13.40553193]
[1733749116967,0.12549,227.79,227.66,0.65866269]
[1733749117832,0.12549,227.74,227.64,1.6158]
[1733749118454,23.902374,227.79,227.64,1.6158]
[1733749118665,0.12549,227.75,227.63,0.65877518]
[1733749119077,9.35991175,227.83,227.65,12.87235924]
[1733749119251,9.35991175,227.83,227.66,13.40551343]
[1733749119645,0.12549,227.82,227.66,13.40551343]
[1733749119959,0.12549,227.82,227.67,0.12549]
[1733749120466,23.902374,227.82,227.67,0.12549]
[1733749120843,0.12549,227.78,227.67,0.12549]
[1733749128671,0.12549,227.78,227.66,0.12549]
[1733749128853,23.902374,227.78,227.66,0.12549]
[1733749129054,23.902374,227.78,227.63,13.40554422]
[1733749129249,0.12549,227.74,227.63,0.65867498]
[1733749129447,0.12549,227.74,227.63,13.40554422]
[1733749130371,0.12549,227.74,227.64,0.12549]
[1733749131734,20.0,227.8,227.67,0.12549]
[1733749132002,0.12549,227.79,227.68,0.12549]
[1733749132372,0.12549,227.79,227.67,0.78411024]
[1733749132895,0.12549,227.75,227.67,0.78411024]
[1733749135689,0.12549,227.75,227.67,13.53097948]
[1733749135903,0.12549,227.75,227.67,0.78411024]
[1733749138409,0.12549,227.75,227.67,0.12549]
[1733749138715,0.12549,227.75,227.65,0.12549]
[1733749139704,23.902374,227.75,227.64,0.12549]
[1733749140078,23.902374,227.75,227.63,0.65865503]
[1733749140602,23.902374,227.75,227.62,18.99816924]
[1733749140905,23.902374,227.75,227.62,6.2513]
[1733749141405,20.0,227.8,227.62,18.99816924]
[1733749141575,20.0,227.72,227.62,18.99816924]
[1733749141881,0.12549,227.71,227.63,13.40567664]
[1733749142300,0.12549,227.71,227.64,0.12549]
[1733749142600,0.12549,227.71,227.64,12.87235924]
[1733749143202,9.35991175,227.83,227.66,0.12549]
[1733749143401,9.35991175,227.83,227.68,0.12549]
[1733749144112,7.6203,227.83,227.7,0.12549]
[1733749144283,1.5232,227.83,227.7,12.87235924]
[1733749144487,1.5232,227.83,227.71,12.74686924]
[1733749144684,1.5232,227.83,227.72,0.12549]
[1733749144889,6.3999,227.89,227.72,0.12549]
[1733749144890,1.6592,227.88,227.73,0.6585034]
[1733749145300,1.6592,227.88,227.72,0.12549]
[1733749145301,0.25098,227.87,227.72,0.12549]
[1733749145582,1.6592,227.88,227.72,0.12549]
[1733749145795,0.25098,227.87,227.72,0.12549]
[1733749146004,0.12549,227.85,227.72,0.12549]
[1733749146213,0.12549,227.81,227.72,0.12549]
[1733749149713,0.12549,227.81,227.73,0.6585414]
[1733749151001,18.92038528,227.82,227.73,0.6585414]
[1733749151911,18.92038528,227.82,227.74,0.12549]
[1733749152110,23.776884,227.87,227.74,12.87235924]
[1733749152413,1.6592,227.88,227.76,12.87235924]
[1733749152615,8.0222,227.94,227.77,0.65837502]
[1733749152781,0.12549,227.93,227.77,0.65837502]
[1733749152976,8.0222,227.94,227.78,0.25098]
[1733749153181,8.0222,227.94,227.8,0.12549]
[1733749153579,1.5644,227.94,227.8,6.69589]
[1733749153800,0.12549,227.93,227.81,0.65828011]
[1733749154087,1.5644,227.94,227.82,0.12549]
[1733749154313,0.12549,227.93,227.82,0.12549]
[1733749155106,23.902374,227.93,227.82,0.12549]
[1733749155303,20.0,227.9,227.82,0.12549]
[1733749155607,20.0,227.9,227.81,0.12549]
[1733749156310,20.0,227.86,227.8,6.5704]
[1733749156509,20.0,227.86,227.74,6.5454]
[1733749157019,20.0,227.82,227.74,6.5454]
[1733749158216,1.8049347,227.9,227.75,0.78399536]
[1733749158425,23.902374,227.93,227.75,13.5308646]
[1733749158796,0.25098,227.92,227.76,0.12549]